[Event "Live Chess"]
[Site "Chess.com"]
[Date "2024.06.01"]
[Round "-"]
[White "WeakOldFinished"]
[Black "nffc11"]
[Result "1-0"]
[WhiteElo "2133"]
[BlackElo "1980"]
[TimeControl "300"]
[EndTime "12:04:46 PDT"]
[Termination "WeakOldFinished won on time"]

1. e4 {[%clk 0:04:54.1]} 1... c6 {[%clk 0:04:57.7]} 2. c4 {[%clk 0:04:50]} 2...
d5 {[%clk 0:04:56.4]} 3. exd5 {[%clk 0:04:48]} 3... cxd5 {[%clk 0:04:56.3]} 4.
d4 {[%clk 0:04:47.7]} 4... Nf6 {[%clk 0:04:55.5]} 5. Nc3 {[%clk 0:04:46.3]} 5...
e6 {[%clk 0:04:54.7]} 6. Nf3 {[%clk 0:04:44.6]} 6... Be7 {[%clk 0:04:53.9]} 7.
c5 {[%clk 0:04:41.8]} 7... O-O {[%clk 0:04:51.7]} 8. Bf4 {[%clk 0:04:39.5]} 8...
b6 {[%clk 0:04:38.6]} 9. b4 {[%clk 0:04:35.7]} 9... a5 {[%clk 0:04:35.8]} 10. a3
{[%clk 0:04:34.6]} 10... Ne4 {[%clk 0:04:17.4]} 11. Na4 {[%clk 0:04:18.7]} 11...
bxc5 {[%clk 0:03:45.3]} 12. bxc5 {[%clk 0:04:16.6]} 12... Nd7 {[%clk 0:03:21.4]}
13. Bb5 {[%clk 0:03:45.7]} 13... g5 {[%clk 0:03:06]} 14. Be3 {[%clk 0:03:39]}
14... f5 {[%clk 0:02:55.1]} 15. O-O {[%clk 0:03:34.8]} 15... g4 {[%clk
0:02:41.4]} 16. Nd2 {[%clk 0:03:32.4]} 16... Ndf6 {[%clk 0:02:23.9]} 17. Nxe4
{[%clk 0:03:29.7]} 17... Nxe4 {[%clk 0:02:21.3]} 18. f3 {[%clk 0:03:28.3]} 18...
gxf3 {[%clk 0:02:09.6]} 19. gxf3 {[%clk 0:03:26.8]} 19... Nf6 {[%clk 0:01:47.4]}
20. Nb6 {[%clk 0:03:25]} 20... Rb8 {[%clk 0:01:39.3]} 21. Kh1 {[%clk 0:03:20.6]}
21... Kh8 {[%clk 0:01:33.7]} 22. f4 {[%clk 0:03:16.4]} 22... Rg8 {[%clk
0:01:30.8]} 23. Qf3 {[%clk 0:03:06.1]} 23... Ne4 {[%clk 0:01:26.6]} 24. Bd3
{[%clk 0:03:04.6]} 24... Qf8 {[%clk 0:01:23.4]} 25. Bxe4 {[%clk 0:03:01.9]}
25... fxe4 {[%clk 0:01:23.3]} 26. Qh5 {[%clk 0:03:00.1]} 26... Ba6 {[%clk
0:00:59.9]} 27. Rg1 {[%clk 0:02:45.4]} 27... Rd8 {[%clk 0:00:42]} 28. c6 {[%clk
0:02:20.2]} 28... Bd6 {[%clk 0:00:32.5]} 29. Nd7 {[%clk 0:02:18]} 29... Rxd7
{[%clk 0:00:26.2]} 30. cxd7 {[%clk 0:02:16.4]} 30... Bb5 {[%clk 0:00:11.9]} 31.
Rxg8+ {[%clk 0:02:14.6]} 31... Qxg8 {[%clk 0:00:11.6]} 32. Rg1 {[%clk
0:02:12.7]} 32... Qf8 {[%clk 0:00:09.5]} 33. f5 {[%clk 0:01:53.4]} 33... Bxd7
{[%clk 0:00:08.1]} 34. Bh6 {[%clk 0:01:51.6]} 34... Qf6 {[%clk 0:00:06]} 35.
Bg7+ {[%clk 0:01:50]} 35... Kg8 {[%clk 0:00:04.6]} 36. Bxf6+ {[%clk 0:01:48.4]}
36... Kf8 {[%clk 0:00:04.5]} 37. Qxh7 {[%clk 0:01:46.8]} 1-0

[Event "Live Chess"]
[Site "Chess.com"]
[Date "2024.06.01"]
[Round "-"]
[White "JohanKjeldahl"]
[Black "Grace6363"]
[Result "1-0"]
[WhiteElo "1836"]
[BlackElo "1149"]
[TimeControl "300"]
[EndTime "12:04:49 PDT"]
[Termination "JohanKjeldahl won by resignation"]

1. e4 {[%clk 0:04:56.8]} 1... c5 {[%clk 0:04:59.1]} 2. Nf3 {[%clk 0:04:55]} 2...
Nc6 {[%clk 0:04:58.4]} 3. d4 {[%clk 0:04:53.8]} 3... cxd4 {[%clk 0:04:57.6]} 4.
Nxd4 {[%clk 0:04:53.3]} 4... g6 {[%clk 0:04:56.7]} 5. Nc3 {[%clk 0:04:51.4]}
5... Bg7 {[%clk 0:04:55.9]} 6. Be3 {[%clk 0:04:51]} 6... Nf6 {[%clk 0:04:54.2]}
7. f3 {[%clk 0:04:49.2]} 7... d6 {[%clk 0:04:50.1]} 8. Qd2 {[%clk 0:04:48.1]}
8... Be6 {[%clk 0:04:48.4]} 9. h4 {[%clk 0:04:44.3]} 9... Qb6 {[%clk 0:04:45.8]}
10. O-O-O {[%clk 0:04:42.4]} 10... a5 {[%clk 0:04:39.6]} 11. Nxe6 {[%clk
0:04:41.3]} 11... Qa7 {[%clk 0:04:33.1]} 12. Nxg7+ {[%clk 0:04:39.1]} 1-0

[Event "Live Chess"]
[Site "Chess.com"]
[Date "2024.06.01"]
[Round "-"]
[White "RamsayFlayer"]
[Black "Sweet-O"]
[Result "0-1"]
[WhiteElo "1939"]
[BlackElo "1563"]
[TimeControl "300"]
[EndTime "12:05:02 PDT"]
[Termination "Sweet-O won on time"]

1. e4 {[%clk 0:04:56.6]} 1... e5 {[%clk 0:04:59.5]} 2. Nf3 {[%clk 0:04:55.5]}
2... Nf6 {[%clk 0:04:59.4]} 3. Nxe5 {[%clk 0:04:54.2]} 3... Nc6 {[%clk
0:04:58.4]} 4. Nxc6 {[%clk 0:04:53.3]} 4... dxc6 {[%clk 0:04:58.3]} 5. Nc3
{[%clk 0:04:51.5]} 5... Bc5 {[%clk 0:04:57.9]} 6. d3 {[%clk 0:04:40]} 6... Ng4
{[%clk 0:04:56.5]} 7. Be3 {[%clk 0:04:20]} 7... Bxe3 {[%clk 0:04:43.3]} 8. fxe3
{[%clk 0:04:18.9]} 8... Nxe3 {[%clk 0:04:42.2]} 9. Qe2 {[%clk 0:04:09.7]} 9...
Qh4+ {[%clk 0:04:38.8]} 10. g3 {[%clk 0:04:05.3]} 10... Qg5 {[%clk 0:04:33]} 11.
Nd1 {[%clk 0:03:49.8]} 11... Ng4 {[%clk 0:04:09.3]} 12. Bh3 {[%clk 0:03:38.5]}
12... Be6 {[%clk 0:03:56.8]} 13. O-O {[%clk 0:03:35.4]} 13... h5 {[%clk
0:03:44.4]} 14. Nf2 {[%clk 0:02:46.2]} 14... O-O-O {[%clk 0:03:31.4]} 15. Bxg4
{[%clk 0:02:34.1]} 15... hxg4 {[%clk 0:03:26.3]} 16. Rad1 {[%clk 0:02:25.4]}
16... Qh5 {[%clk 0:03:23.7]} 17. Nh1 {[%clk 0:02:22.4]} 17... Rh6 {[%clk
0:03:09.2]} 18. Rd2 {[%clk 0:02:10.4]} 18... Qc5+ {[%clk 0:02:58.8]} 19. Qf2
{[%clk 0:02:07.4]} 19... Qh5 {[%clk 0:02:47.1]} 20. Qe3 {[%clk 0:01:55.6]} 20...
b6 {[%clk 0:02:38.8]} 21. Rg2 {[%clk 0:01:53.5]} 21... f5 {[%clk 0:02:28.7]} 22.
Nf2 {[%clk 0:01:49.1]} 22... Rdh8 {[%clk 0:02:13.4]} 23. Nd1 {[%clk 0:01:44.8]}
23... Qh3 {[%clk 0:01:59.3]} 24. Qd2 {[%clk 0:01:26]} 24... Qh5 {[%clk 0:01:47]}
25. exf5 {[%clk 0:01:20.3]} 25... Bxf5 {[%clk 0:01:45]} 26. Ne3 {[%clk
0:01:19.3]} 26... Be6 {[%clk 0:01:31.6]} 27. Qc3 {[%clk 0:01:11.7]} 27... g5
{[%clk 0:01:24.8]} 28. Qxc6 {[%clk 0:01:09]} 28... Bf5 {[%clk 0:01:04.1]} 29.
Qa4 {[%clk 0:00:57.7]} 29... Bg6 {[%clk 0:00:48.6]} 30. Qxa7 {[%clk 0:00:54]}
30... Kd7 {[%clk 0:00:45.6]} 31. Qa4+ {[%clk 0:00:51.8]} 31... Kc8 {[%clk
0:00:41.4]} 32. Qxg4+ {[%clk 0:00:49.9]} 32... Qxg4 {[%clk 0:00:39.5]} 33. Nxg4
{[%clk 0:00:49.8]} 33... R6h7 {[%clk 0:00:36.2]} 34. Ne5 {[%clk 0:00:42.6]}
34... Be8 {[%clk 0:00:33.9]} 35. Rgf2 {[%clk 0:00:38.6]} 35... Bb5 {[%clk
0:00:30.5]} 36. Rf8+ {[%clk 0:00:36.3]} 36... Rxf8 {[%clk 0:00:30.1]} 37. Rxf8+
{[%clk 0:00:35.1]} 37... Kb7 {[%clk 0:00:29.7]} 38. c4 {[%clk 0:00:29.8]} 38...
Bc6 {[%clk 0:00:26.2]} 39. Nxc6 {[%clk 0:00:27.9]} 39... Kxc6 {[%clk 0:00:26.1]}
40. Rf5 {[%clk 0:00:25.7]} 40... g4 {[%clk 0:00:22.1]} 41. Rf4 {[%clk
0:00:24.3]} 41... b5 {[%clk 0:00:21.2]} 42. Rxg4 {[%clk 0:00:22.5]} 42... bxc4
{[%clk 0:00:20]} 43. Rxc4+ {[%clk 0:00:21.4]} 43... Kd6 {[%clk 0:00:17.5]} 44.
d4 {[%clk 0:00:19.2]} 44... Re7 {[%clk 0:00:16.7]} 45. Kf2 {[%clk 0:00:17.7]}
45... Rf7+ {[%clk 0:00:15.1]} 46. Ke2 {[%clk 0:00:16.6]} 46... Re7+ {[%clk
0:00:15]} 47. Kd3 {[%clk 0:00:16]} 47... Rf7 {[%clk 0:00:14.9]} 48. g4 {[%clk
0:00:13.9]} 48... Rf3+ {[%clk 0:00:14.1]} 49. Ke4 {[%clk 0:00:13.3]} 49... Rf2
{[%clk 0:00:13.3]} 50. d5 {[%clk 0:00:10.7]} 50... Rxh2 {[%clk 0:00:12]} 51.
Rc6+ {[%clk 0:00:08.4]} 51... Kd7 {[%clk 0:00:10.4]} 52. Rg6 {[%clk 0:00:08.3]}
52... Rxb2 {[%clk 0:00:07.8]} 53. g5 {[%clk 0:00:07.2]} 53... Rxa2 {[%clk
0:00:07.2]} 54. Ke5 {[%clk 0:00:06.5]} 54... Ra4 {[%clk 0:00:06.7]} 55. Kf6
{[%clk 0:00:06]} 55... Ra1 {[%clk 0:00:06.2]} 56. Rg7+ {[%clk 0:00:05.6]} 56...
Kd6 {[%clk 0:00:04.5]} 57. Rg8 {[%clk 0:00:04.6]} 57... Kc5 {[%clk 0:00:04.4]}
58. Re8 {[%clk 0:00:03.4]} 58... Rb1 {[%clk 0:00:04.3]} 59. g6 {[%clk 0:00:03]}
59... Ra1 {[%clk 0:00:04.2]} 60. g7 {[%clk 0:00:02.5]} 60... Ra6+ {[%clk
0:00:04.1]} 61. Kf7 {[%clk 0:00:01.6]} 61... Ra5 {[%clk 0:00:04]} 62. g8=Q
{[%clk 0:00:01.5]} 62... Ra1 {[%clk 0:00:03.9]} 63. Qg6 {[%clk 0:00:00.8]} 63...
Rf1+ {[%clk 0:00:03.8]} 64. Qf6 {[%clk 0:00:00.1]} 64... Rxf6+ {[%clk
0:00:03.7]} 0-1

[Event "Live Chess"]
[Site "Chess.com"]
[Date "2024.06.01"]
[Round "-"]
[White "Brooms1989"]
[Black "Nazarenko_vital"]
[Result "0-1"]
[WhiteElo "1092"]
[BlackElo "1485"]
[TimeControl "300"]
[EndTime "12:05:33 PDT"]
[Termination "Nazarenko_vital won by resignation"]

1. e4 {[%clk 0:04:55.1]} 1... d5 {[%clk 0:04:58.2]} 2. exd5 {[%clk 0:04:53.6]}
2... Qxd5 {[%clk 0:04:57.1]} 3. d4 {[%clk 0:04:52.6]} 3... Nf6 {[%clk
0:04:55.1]} 4. c4 {[%clk 0:04:50]} 4... Qa5+ {[%clk 0:04:53.5]} 5. Bd2 {[%clk
0:04:47.1]} 5... Qb6 {[%clk 0:04:51.7]} 6. Bc3 {[%clk 0:04:36.8]} 6... c6 {[%clk
0:04:50.5]} 7. Nf3 {[%clk 0:04:33.1]} 7... Bg4 {[%clk 0:04:49.1]} 8. Be2 {[%clk
0:04:32.5]} 8... Ne4 {[%clk 0:04:47.8]} 9. O-O {[%clk 0:04:27.3]} 9... Nxc3
{[%clk 0:04:45.5]} 10. bxc3 {[%clk 0:04:27.2]} 10... e6 {[%clk 0:04:43.1]} 11.
Ne5 {[%clk 0:04:21.2]} 11... Bf5 {[%clk 0:04:38.8]} 12. Bg4 {[%clk 0:04:12.1]}
12... Bg6 {[%clk 0:03:55.2]} 13. Qe2 {[%clk 0:03:44.2]} 13... Nd7 {[%clk
0:03:53.5]} 14. Nxg6 {[%clk 0:03:41.8]} 14... hxg6 {[%clk 0:03:51.4]} 15. Nd2
{[%clk 0:03:33.5]} 15... Bd6 {[%clk 0:03:50.4]} 16. c5 {[%clk 0:03:28.9]} 16...
Bxh2+ {[%clk 0:03:47.7]} 17. Kh1 {[%clk 0:03:21.7]} 17... Qc7 {[%clk 0:03:41.5]}
18. Nf3 {[%clk 0:03:12.6]} 18... Nf6 {[%clk 0:03:27.1]} 19. Bh3 {[%clk 0:03:01]}
19... Bf4 {[%clk 0:03:20.1]} 20. Ne5 {[%clk 0:02:46.4]} 20... g5 {[%clk
0:03:05.3]} 21. Ng6 {[%clk 0:02:18]} 21... fxg6 {[%clk 0:02:56.4]} 22. Qxe6+
{[%clk 0:02:16.2]} 22... Qe7 {[%clk 0:02:52.9]} 23. Qxe7+ {[%clk 0:02:10.2]}
23... Kxe7 {[%clk 0:02:50.7]} 24. Rae1+ {[%clk 0:02:09.5]} 24... Kd8 {[%clk
0:02:31.8]} 25. Re2 {[%clk 0:01:54.8]} 25... g4 {[%clk 0:02:30.3]} 26. Rfe1
{[%clk 0:01:46.7]} 26... gxh3 {[%clk 0:02:24]} 27. g3 {[%clk 0:01:45.7]} 27...
Bh6 {[%clk 0:01:56.7]} 28. Re7 {[%clk 0:01:37.4]} 28... Re8 {[%clk 0:01:49]} 29.
Rxe8+ {[%clk 0:01:34.9]} 29... Nxe8 {[%clk 0:01:47.6]} 30. Rxe8+ {[%clk
0:01:34.8]} 30... Kxe8 {[%clk 0:01:46.4]} 0-1

[Event "Live Chess"]
[Site "Chess.com"]
[Date "2024.06.01"]
[Round "-"]
[White "RomanKifliuk"]
[Black "bonantagulo"]
[Result "1-0"]
[WhiteElo "2341"]
[BlackElo "2045"]
[TimeControl "300"]
[EndTime "12:05:41 PDT"]
[Termination "RomanKifliuk won on time"]

1. e4 {[%clk 0:04:59.2]} 1... c5 {[%clk 0:04:56]} 2. f4 {[%clk 0:04:57.4]} 2...
e6 {[%clk 0:04:52.1]} 3. Nf3 {[%clk 0:04:56.4]} 3... Nc6 {[%clk 0:04:46.3]} 4.
Bb5 {[%clk 0:04:52.8]} 4... Nge7 {[%clk 0:04:45.4]} 5. O-O {[%clk 0:04:51.8]}
5... a6 {[%clk 0:04:44.2]} 6. Bxc6 {[%clk 0:04:50.7]} 6... Nxc6 {[%clk
0:04:43.2]} 7. Nc3 {[%clk 0:04:50.6]} 7... d5 {[%clk 0:04:31.4]} 8. d3 {[%clk
0:04:48.3]} 8... Be7 {[%clk 0:04:11.3]} 9. Qe1 {[%clk 0:04:46.5]} 9... O-O
{[%clk 0:04:02.3]} 10. Qg3 {[%clk 0:04:44.6]} 10... dxe4 {[%clk 0:03:47.2]} 11.
dxe4 {[%clk 0:04:42.8]} 11... Nd4 {[%clk 0:03:46.6]} 12. Nxd4 {[%clk 0:04:38.5]}
12... Qxd4+ {[%clk 0:03:46.5]} 13. Be3 {[%clk 0:04:37]} 13... Qb4 {[%clk
0:03:41.2]} 14. f5 {[%clk 0:04:31.2]} 14... Qxb2 {[%clk 0:03:35.6]} 15. Bh6
{[%clk 0:04:29.4]} 15... Bf6 {[%clk 0:03:27.4]} 16. Bxg7 {[%clk 0:04:27.7]}
16... Qxc3 {[%clk 0:03:12.9]} 17. Bxf6+ {[%clk 0:03:45.1]} 17... Qxg3 {[%clk
0:03:10.5]} 18. hxg3 {[%clk 0:03:43]} 18... exf5 {[%clk 0:03:04.7]} 19. exf5
{[%clk 0:03:41.5]} 19... Bd7 {[%clk 0:02:31.8]} 20. Rf4 {[%clk 0:03:39.1]} 20...
Rfe8 {[%clk 0:01:57]} 21. Rg4+ {[%clk 0:03:31.4]} 21... Kf8 {[%clk 0:01:55.9]}
22. Rc1 {[%clk 0:03:20]} 22... Bxf5 {[%clk 0:01:48]} 23. Bg7+ {[%clk 0:03:14.1]}
23... Kg8 {[%clk 0:01:39.2]} 24. Rg5 {[%clk 0:03:11.3]} 24... Bg6 {[%clk
0:01:35.3]} 25. Bh6 {[%clk 0:03:09.9]} 25... c4 {[%clk 0:01:25.6]} 26. Rc5
{[%clk 0:03:04.7]} 26... b5 {[%clk 0:01:19.7]} 27. c3 {[%clk 0:03:03.3]} 27...
Rad8 {[%clk 0:01:06.6]} 28. Rf1 {[%clk 0:02:54.5]} 28... Re2 {[%clk 0:01:04.3]}
29. a3 {[%clk 0:02:50.7]} 29... Re6 {[%clk 0:00:24.9]} 30. Rf4 {[%clk
0:02:48.7]} 30... Rd1+ {[%clk 0:00:13.9]} 31. Kh2 {[%clk 0:02:47.6]} 31... Re8
{[%clk 0:00:13.8]} 32. Rd4 {[%clk 0:02:45.4]} 32... Rxd4 {[%clk 0:00:12.8]} 33.
cxd4 {[%clk 0:02:45.3]} 33... a5 {[%clk 0:00:11.6]} 34. Rxb5 {[%clk 0:02:44]}
34... Rc8 {[%clk 0:00:10.9]} 35. d5 {[%clk 0:02:41.3]} 35... c3 {[%clk
0:00:09.8]} 36. d6 {[%clk 0:02:40.6]} 36... c2 {[%clk 0:00:09.2]} 37. d7 {[%clk
0:02:40.5]} 37... Rd8 {[%clk 0:00:07.7]} 38. Rc5 {[%clk 0:02:39.6]} 38... f6
{[%clk 0:00:05.6]} 39. Rc8 {[%clk 0:02:38.5]} 1-0

[Event "Live Chess"]
[Site "Chess.com"]
[Date "2024.06.01"]
[Round "-"]
[White "WelshTiger"]
[Black "Delacorta"]
[Result "1-0"]
[WhiteElo "2535"]
[BlackElo "1481"]
[TimeControl "300"]
[EndTime "12:06:00 PDT"]
[Termination "WelshTiger won by resignation"]

1. e4 {[%clk 0:04:56.2]} 1... e6 {[%clk 0:04:59.1]} 2. d4 {[%clk 0:04:55]} 2...
d5 {[%clk 0:04:58.1]} 3. Nd2 {[%clk 0:04:54.3]} 3... dxe4 {[%clk 0:04:56.4]} 4.
Nxe4 {[%clk 0:04:53.2]} 4... Bd7 {[%clk 0:04:55.8]} 5. Nf3 {[%clk 0:04:51.8]}
5... Bc6 {[%clk 0:04:54.5]} 6. Ng3 {[%clk 0:04:50.1]} 6... Nd7 {[%clk
0:04:52.6]} 7. c3 {[%clk 0:04:47.7]} 7... Ngf6 {[%clk 0:04:51.6]} 8. Bd3 {[%clk
0:04:46.4]} 8... Be7 {[%clk 0:04:46.9]} 9. O-O {[%clk 0:04:44.6]} 9... O-O
{[%clk 0:04:45.8]} 10. Qe2 {[%clk 0:04:42.4]} 10... b6 {[%clk 0:04:38.4]} 11.
Ne5 {[%clk 0:04:41.5]} 11... Bb7 {[%clk 0:04:35.2]} 12. Rd1 {[%clk 0:04:37.3]}
12... Re8 {[%clk 0:04:21.4]} 13. Bc4 {[%clk 0:04:19.3]} 13... Nd5 {[%clk
0:04:09.7]} 14. Bb3 {[%clk 0:04:18.3]} 14... N7f6 {[%clk 0:04:07.8]} 15. a3
{[%clk 0:04:12.1]} 15... Bf8 {[%clk 0:03:51.6]} 16. Re1 {[%clk 0:04:02.5]} 16...
Nf4 {[%clk 0:03:43.6]} 17. Bxf4 {[%clk 0:04:00]} 1-0

[Event "Live Chess"]
[Site "Chess.com"]
[Date "2024.06.01"]
[Round "-"]
[White "booktrunk"]
[Black "Nazar-Makarchuk"]
[Result "1/2-1/2"]
[WhiteElo "1362"]
[BlackElo "1573"]
[TimeControl "300"]
[EndTime "12:06:04 PDT"]
[Termination "Game drawn - insufficient material"]

1. d4 {[%clk 0:04:54.2]} 1... d5 {[%clk 0:04:59.6]} 2. Nc3 {[%clk 0:04:48.6]}
2... Nf6 {[%clk 0:04:59.1]} 3. Bf4 {[%clk 0:04:46.3]} 3... a6 {[%clk 0:04:56.9]}
4. a3 {[%clk 0:04:43.9]} 4... e6 {[%clk 0:04:55.6]} 5. h3 {[%clk 0:04:42.7]}
5... Bd6 {[%clk 0:04:54.7]} 6. Bxd6 {[%clk 0:04:40.9]} 6... Qxd6 {[%clk
0:04:49.3]} 7. Nf3 {[%clk 0:04:35.4]} 7... Nc6 {[%clk 0:04:48.6]} 8. e3 {[%clk
0:04:34.1]} 8... e5 {[%clk 0:04:48]} 9. dxe5 {[%clk 0:04:32.2]} 9... Nxe5 {[%clk
0:04:47.2]} 10. Nxe5 {[%clk 0:04:31.6]} 10... Qxe5 {[%clk 0:04:46.2]} 11. Qd4
{[%clk 0:04:29.8]} 11... Qxd4 {[%clk 0:04:45]} 12. exd4 {[%clk 0:04:28.4]} 12...
O-O {[%clk 0:04:43.9]} 13. O-O-O {[%clk 0:04:27.2]} 13... c6 {[%clk 0:04:41.9]}
14. Bd3 {[%clk 0:04:22.8]} 14... Re8 {[%clk 0:04:38.4]} 15. Rhe1 {[%clk
0:04:20.8]} 15... Bd7 {[%clk 0:04:29]} 16. Rxe8+ {[%clk 0:04:17.6]} 16... Rxe8
{[%clk 0:04:27.3]} 17. Kd2 {[%clk 0:04:16.6]} 17... Nh5 {[%clk 0:04:09.5]} 18.
Re1 {[%clk 0:04:11.8]} 18... Rxe1 {[%clk 0:04:05.2]} 19. Kxe1 {[%clk 0:04:09.5]}
19... Nf4 {[%clk 0:04:04.8]} 20. Bf1 {[%clk 0:04:07.2]} 20... Ne6 {[%clk
0:03:57.1]} 21. Ne2 {[%clk 0:04:04.7]} 21... Kf8 {[%clk 0:03:54.5]} 22. Kd2
{[%clk 0:04:04.1]} 22... Ke7 {[%clk 0:03:50.7]} 23. Kc3 {[%clk 0:04:03.4]} 23...
Ng5 {[%clk 0:03:47.6]} 24. Nf4 {[%clk 0:04:01]} 24... Ne4+ {[%clk 0:03:45.9]}
25. Kd3 {[%clk 0:03:52.2]} 25... Nxf2+ {[%clk 0:03:43]} 26. Ke3 {[%clk
0:03:52.1]} 26... Nd1+ {[%clk 0:03:39.8]} 27. Kd3 {[%clk 0:03:47.8]} 27... Nxb2+
{[%clk 0:03:39]} 28. Kc3 {[%clk 0:03:47.7]} 28... Nd1+ {[%clk 0:03:38]} 29. Kd2
{[%clk 0:03:46.4]} 29... Nb2 {[%clk 0:03:33.3]} 30. Kc3 {[%clk 0:03:45]} 30...
Na4+ {[%clk 0:03:29.8]} 31. Kb4 {[%clk 0:03:43.9]} 31... Nb6 {[%clk 0:03:27.1]}
32. Kc5 {[%clk 0:03:41.5]} 32... Nc8 {[%clk 0:03:14.6]} 33. Bd3 {[%clk
0:03:39.4]} 33... b6+ {[%clk 0:03:11.4]} 34. Kb4 {[%clk 0:03:35.6]} 34... a5+
{[%clk 0:03:03.6]} 35. Kc3 {[%clk 0:03:33.3]} 35... c5 {[%clk 0:02:59.3]} 36.
Nxd5+ {[%clk 0:03:31.2]} 36... Kd6 {[%clk 0:02:57.4]} 37. Nf4 {[%clk 0:03:25.3]}
37... cxd4+ {[%clk 0:02:54.1]} 38. Kxd4 {[%clk 0:03:24.3]} 38... h6 {[%clk
0:02:49.1]} 39. c4 {[%clk 0:03:19]} 39... Ke7 {[%clk 0:02:48.1]} 40. Nd5+ {[%clk
0:03:17]} 40... Kf8 {[%clk 0:02:44.1]} 41. Nc7 {[%clk 0:03:15.1]} 41... Ke7
{[%clk 0:02:40.9]} 42. Be4 {[%clk 0:03:13]} 42... Nd6 {[%clk 0:02:36.6]} 43. Bf3
{[%clk 0:03:07.2]} 43... Nf5+ {[%clk 0:02:31.6]} 44. Kc3 {[%clk 0:03:04.3]}
44... Nh4 {[%clk 0:02:27.1]} 45. Bb7 {[%clk 0:02:54.9]} 45... Kd6 {[%clk
0:02:21.7]} 46. Nb5+ {[%clk 0:02:42.8]} 46... Bxb5 {[%clk 0:02:18.5]} 47. cxb5
{[%clk 0:02:39.5]} 47... Kc5 {[%clk 0:02:17.4]} 48. a4 {[%clk 0:02:36.7]} 48...
Nf5 {[%clk 0:02:12]} 49. Bc6 {[%clk 0:02:35.9]} 49... Nd4 {[%clk 0:02:09.1]} 50.
Be4 {[%clk 0:02:32.5]} 50... f5 {[%clk 0:02:06.9]} 51. Ba8 {[%clk 0:02:29.3]}
51... g5 {[%clk 0:02:05]} 52. Bb7 {[%clk 0:02:23.7]} 52... Ne2+ {[%clk
0:02:02.8]} 53. Kd3 {[%clk 0:02:20.7]} 53... Nf4+ {[%clk 0:01:58.1]} 54. Kc3
{[%clk 0:02:18.6]} 54... Nd5+ {[%clk 0:01:55.6]} 55. Kb3 {[%clk 0:02:16]} 55...
f4 {[%clk 0:01:47.2]} 56. Bc8 {[%clk 0:02:14.2]} 56... Ne3 {[%clk 0:01:44]} 57.
Bb7 {[%clk 0:02:12.9]} 57... h5 {[%clk 0:01:42.6]} 58. Kc3 {[%clk 0:02:10]}
58... g4 {[%clk 0:01:41.7]} 59. hxg4 {[%clk 0:02:07.7]} 59... hxg4 {[%clk
0:01:41.2]} 60. Kd3 {[%clk 0:02:05.9]} 60... Nd1 {[%clk 0:01:38.9]} 61. Ke4
{[%clk 0:02:04.4]} 61... f3 {[%clk 0:01:36.1]} 62. gxf3 {[%clk 0:02:01.4]} 62...
gxf3 {[%clk 0:01:35.3]} 63. Kxf3 {[%clk 0:02:00.3]} 63... Nb2 {[%clk 0:01:34.6]}
64. Ke3 {[%clk 0:02:00.2]} 64... Nxa4 {[%clk 0:01:33.9]} 65. Kd2 {[%clk
0:01:59.6]} 65... Kxb5 {[%clk 0:01:32.4]} 66. Kc2 {[%clk 0:01:59.5]} 66... Kb4
{[%clk 0:01:31.7]} 67. Kb1 {[%clk 0:01:57.9]} 67... b5 {[%clk 0:01:30.6]} 68.
Ka1 {[%clk 0:01:56.8]} 68... Nc5 {[%clk 0:01:28.7]} 69. Bd5 {[%clk 0:01:55]}
69... a4 {[%clk 0:01:27.5]} 70. Bg8 {[%clk 0:01:53.4]} 70... Kc3 {[%clk
0:01:25.4]} 71. Bf7 {[%clk 0:01:50.6]} 71... b4 {[%clk 0:01:24.7]} 72. Bg8
{[%clk 0:01:49.1]} 72... b3 {[%clk 0:01:24]} 73. Bf7 {[%clk 0:01:44.9]} 73...
Kc2 {[%clk 0:01:23.3]} 74. Bg6+ {[%clk 0:01:36.5]} 74... Kc1 {[%clk 0:01:22.2]}
75. Bb1 {[%clk 0:01:26.9]} 75... a3 {[%clk 0:01:15.4]} 76. Bh7 {[%clk
0:01:22.2]} 76... Na4 {[%clk 0:01:06.2]} 77. Bg6 {[%clk 0:01:19.8]} 77... b2+
{[%clk 0:01:04.9]} 78. Ka2 {[%clk 0:01:17.5]} 78... Nc3+ {[%clk 0:00:55.1]} 79.
Kxa3 {[%clk 0:01:15.9]} 79... b1=Q {[%clk 0:00:46]} 80. Bxb1 {[%clk 0:01:13.1]}
1/2-1/2